[Event "Titled Tuesday Blitz April 26 Late 2022"]
[White "D`Arruda, Ricardo D."]
[Black "Baches Garcia, Guillermo"]
[WhiteFideId "100692"]
[BlackFideId "2209764"]
[WhiteElo "2373"]
[BlackElo "2505"]
[Result "0-1"]
[Round "09"]
[TimeControl "180+1"]
[Date "2022.04.26"]
[WhiteClock "0:00:23"]
[BlackClock "0:00:29"]

1. Nf3 {[%clk 0:03:00]}  Nf6 {[%clk 0:02:58]} 2. d4 {[%clk 0:03:00]}  e6 {[%clk 0:02:57]} 3. c3 {[%clk 0:02:59]}  c5 {[%clk 0:02:56]} 4. e3 {[%clk 0:02:57]}  cxd4 {[%clk 0:02:56]} 5. exd4 {[%clk 0:02:56]}  b6 {[%clk 0:02:56]} 6. Bd3 {[%clk 0:02:56]}  Bb7 {[%clk 0:02:57]} 7. O-O {[%clk 0:02:56]}  Be7 {[%clk 0:02:57]} 8. Nbd2 {[%clk 0:02:56]}  O-O {[%clk 0:02:56]} 9. Qe2 {[%clk 0:02:56]}  d6 {[%clk 0:02:57]} 10. Ne4 {[%clk 0:02:56]}  Nbd7 {[%clk 0:02:56]} 11. Bf4 {[%clk 0:02:53]}  Qc7 {[%clk 0:02:55]} 12. Rfe1 {[%clk 0:02:52]}  a6 {[%clk 0:02:54]} 13. Rad1 {[%clk 0:02:51]}  Rfe8 {[%clk 0:02:53]} 14. h3 {[%clk 0:02:49]}  Bf8 {[%clk 0:02:52]} 15. Bg5 {[%clk 0:02:46]}  Be7 {[%clk 0:02:45]} 16. Bc1 {[%clk 0:02:39]}  b5 {[%clk 0:02:37]} 17. Bf4 {[%clk 0:02:37]}  Bd5 {[%clk 0:02:33]} 18. a3 {[%clk 0:02:32]}  Qc6 {[%clk 0:02:24]} 19. Nfg5 {[%clk 0:02:16]}  h6 {[%clk 0:02:12]} 20. Nxf6+ {[%clk 0:02:15]}  Nxf6 {[%clk 0:02:07]} 21. Ne4 {[%clk 0:02:15]}  Nxe4 {[%clk 0:01:59]} 22. Bxe4 {[%clk 0:02:16]}  Bxe4 {[%clk 0:01:58]} 23. Qxe4 {[%clk 0:02:16]}  Qxe4 {[%clk 0:01:55]} 24. Rxe4 {[%clk 0:02:17]}  d5 {[%clk 0:01:51]} 25. Ree1 {[%clk 0:02:14]}  a5 {[%clk 0:01:48]} 26. Bd2 {[%clk 0:02:12]}  Rec8 {[%clk 0:01:42]} 27. Ra1 {[%clk 0:02:06]}  Rc4 {[%clk 0:01:39]} 28. Kf1 {[%clk 0:02:05]}  Rb8 {[%clk 0:01:33]} 29. Ke2 {[%clk 0:02:04]}  b4 {[%clk 0:01:33]} 30. axb4 {[%clk 0:02:04]}  axb4 {[%clk 0:01:34]} 31. Kd3 {[%clk 0:02:03]}  bxc3 {[%clk 0:01:32]} 32. bxc3 {[%clk 0:02:03]}  g5 {[%clk 0:01:27]} 33. Reb1 {[%clk 0:02:01]}  Rxb1 {[%clk 0:01:20]} 34. Rxb1 {[%clk 0:02:02]}  Rc7 {[%clk 0:01:18]} 35. f4 {[%clk 0:01:58]}  Kg7 {[%clk 0:01:16]} 36. g4 {[%clk 0:01:52]}  Ra7 {[%clk 0:01:05]} 37. Rb6 {[%clk 0:01:45]}  Bf6 {[%clk 0:01:00]} 38. Rb1 {[%clk 0:01:39]}  Be7 {[%clk 0:00:57]} 39. Rb6 {[%clk 0:01:37]}  Ra1 {[%clk 0:00:55]} 40. Rb7 {[%clk 0:01:36]}  Bf6 {[%clk 0:00:52]} 41. f5 {[%clk 0:00:51]}  exf5 {[%clk 0:00:52]} 42. gxf5 {[%clk 0:00:52]}  Rf1 {[%clk 0:00:51]} 43. Ke2 {[%clk 0:00:46]}  Rxf5 {[%clk 0:00:49]} 44. Rb5 {[%clk 0:00:46]}  Kg6 {[%clk 0:00:48]} 45. Be3 {[%clk 0:00:44]}  h5 {[%clk 0:00:46]} 46. Rb6 {[%clk 0:00:42]}  g4 {[%clk 0:00:42]} 47. h4 {[%clk 0:00:42]}  g3 {[%clk 0:00:36]} 48. Bg5 {[%clk 0:00:27]}  g2 {[%clk 0:00:34]} 49. Rb1 {[%clk 0:00:21]}  Bxg5 {[%clk 0:00:30]} 50. hxg5 {[%clk 0:00:22]}  Rxg5 {[%clk 0:00:29]} 51. Rg1 {[%clk 0:00:23]}  h4 {[%clk 0:00:29]} 0-1


[Site "https://www.chess.com"]

[Event "Titled Tuesday Blitz April 26 Late 2022"]
[White "De Souza, Cristiano Gomes"]
[Black "Sarkar, Justin"]
[WhiteFideId "2151758"]
[BlackFideId "2010011"]
[WhiteElo "2068"]
[BlackElo "2038"]
[Result "1/2-1/2"]
[Round "09"]
[TimeControl "180+1"]
[Date "2022.04.26"]
[WhiteClock "0:00:36"]
[BlackClock "0:00:07"]

1. d3 {[%clk 0:02:58]}  e5 {[%clk 0:02:45]} 2. Nf3 {[%clk 0:02:59]}  Nc6 {[%clk 0:02:44]} 3. g3 {[%clk 0:02:58]}  f5 {[%clk 0:02:32]} 4. Bg2 {[%clk 0:02:59]}  Nf6 {[%clk 0:02:29]} 5. c4 {[%clk 0:02:56]}  Bb4+ {[%clk 0:02:18]} 6. Bd2 {[%clk 0:02:56]}  Bc5 {[%clk 0:02:04]} 7. O-O {[%clk 0:02:55]}  O-O {[%clk 0:02:00]} 8. Bc3 {[%clk 0:02:53]}  e4 {[%clk 0:01:54]} 9. dxe4 {[%clk 0:02:52]}  Nxe4 {[%clk 0:01:50]} 10. a3 {[%clk 0:02:35]}  d6 {[%clk 0:01:45]} 11. Qc2 {[%clk 0:02:34]}  a5 {[%clk 0:01:34]} 12. Nbd2 {[%clk 0:02:34]}  Nxc3 {[%clk 0:01:29]} 13. Qxc3 {[%clk 0:02:33]}  a4 {[%clk 0:01:28]} 14. Rad1 {[%clk 0:02:25]}  Qf6 {[%clk 0:01:21]} 15. Qxf6 {[%clk 0:02:22]}  Rxf6 {[%clk 0:01:22]} 16. Nb1 {[%clk 0:02:19]}  Be6 {[%clk 0:01:20]} 17. Nbd2 {[%clk 0:02:01]}  h6 {[%clk 0:01:10]} 18. Ne1 {[%clk 0:01:50]}  Nd4 {[%clk 0:01:03]} 19. e3 {[%clk 0:01:49]}  Nc6 {[%clk 0:00:51]} 20. Nd3 {[%clk 0:01:48]}  Bb6 {[%clk 0:00:44]} 21. Nf4 {[%clk 0:01:48]}  Bf7 {[%clk 0:00:37]} 22. Nd5 {[%clk 0:01:42]}  Bxd5 {[%clk 0:00:33]} 23. Bxd5+ {[%clk 0:01:41]}  Kf8 {[%clk 0:00:32]} 24. Nf3 {[%clk 0:01:29]}  Rb8 {[%clk 0:00:30]} 25. Nd4 {[%clk 0:01:24]}  Nxd4 {[%clk 0:00:17]} 26. exd4 {[%clk 0:01:23]}  f4 {[%clk 0:00:18]} 27. Kg2 {[%clk 0:01:13]}  c5 {[%clk 0:00:16]} 28. dxc5 {[%clk 0:01:10]}  Bxc5 {[%clk 0:00:16]} 29. Rd3 {[%clk 0:01:01]}  b5 {[%clk 0:00:13]} 30. b3 {[%clk 0:00:52]}  b4 {[%clk 0:00:12]} 31. axb4 {[%clk 0:00:47]}  Rxb4 {[%clk 0:00:12]} 32. bxa4 {[%clk 0:00:47]}  Rxa4 {[%clk 0:00:12]} 33. Rf3 {[%clk 0:00:32]}  fxg3 {[%clk 0:00:09]} 34. fxg3 {[%clk 0:00:32]}  Ra2+ {[%clk 0:00:08]} 35. Kh3 {[%clk 0:00:32]}  Rxf3 {[%clk 0:00:07]} 36. Rxf3+ {[%clk 0:00:32]}  Ke8 {[%clk 0:00:07]} 37. Rf7 {[%clk 0:00:29]}  Ra7 {[%clk 0:00:07]} 38. Rxa7 {[%clk 0:00:27]}  Bxa7 {[%clk 0:00:08]} 39. Kg4 {[%clk 0:00:28]}  Ke7 {[%clk 0:00:08]} 40. Kf5 {[%clk 0:00:28]}  Bc5 {[%clk 0:00:07]} 41. Kg6 {[%clk 0:00:26]}  Bd4 {[%clk 0:00:07]} 42. h4 {[%clk 0:00:25]}  Bc3 {[%clk 0:00:07]} 43. g4 {[%clk 0:00:25]}  Bd4 {[%clk 0:00:07]} 44. g5 {[%clk 0:00:25]}  hxg5 {[%clk 0:00:07]} 45. hxg5 {[%clk 0:00:26]}  Bc3 {[%clk 0:00:07]} 46. Kf5 {[%clk 0:00:27]}  Bb2 {[%clk 0:00:07]} 47. g6 {[%clk 0:00:28]}  Bc3 {[%clk 0:00:07]} 48. Bf7 {[%clk 0:00:29]}  Bf6 {[%clk 0:00:07]} 49. Ke4 {[%clk 0:00:30]}  Bb2 {[%clk 0:00:06]} 50. Kd5 {[%clk 0:00:31]}  Ba1 {[%clk 0:00:06]} 51. c5 {[%clk 0:00:31]}  dxc5 {[%clk 0:00:06]} 52. Kxc5 {[%clk 0:00:32]}  Kf6 {[%clk 0:00:06]} 53. Kd5 {[%clk 0:00:33]}  Bb2 {[%clk 0:00:06]} 54. Kc6 {[%clk 0:00:33]}  Ba1 {[%clk 0:00:07]} 55. Kd5 {[%clk 0:00:34]}  Bb2 {[%clk 0:00:07]} 56. Kc6 {[%clk 0:00:35]}  Ba1 {[%clk 0:00:07]} 57. Kd5 {[%clk 0:00:36]} 1/2-1/2


[Site "https://www.chess.com"]

[Event "Titled Tuesday Blitz April 26 Late 2022"]
[White "Demchenko, Anton"]
[Black "Li, Ben"]
[WhiteFideId "4160258"]
[BlackFideId "2089980"]
[WhiteElo "2539"]
[BlackElo "2267"]
[Result "1-0"]
[Round "09"]
[TimeControl "180+1"]
[Date "2022.04.26"]
[WhiteClock "0:00:41"]
[BlackClock "0:00:02"]

1. e4 {[%clk 0:03:00]}  e5 {[%clk 0:02:59]} 2. Nf3 {[%clk 0:03:00]}  Nc6 {[%clk 0:02:58]} 3. Bc4 {[%clk 0:03:01]}  Bc5 {[%clk 0:02:58]} 4. d3 {[%clk 0:03:02]}  Nf6 {[%clk 0:02:57]} 5. Bg5 {[%clk 0:03:00]}  h6 {[%clk 0:02:54]} 6. Bh4 {[%clk 0:03:00]}  g5 {[%clk 0:02:52]} 7. Bg3 {[%clk 0:03:00]}  d6 {[%clk 0:02:52]} 8. c3 {[%clk 0:03:01]}  a6 {[%clk 0:02:51]} 9. Nbd2 {[%clk 0:03:00]}  Ba7 {[%clk 0:02:51]} 10. O-O {[%clk 0:03:00]}  Qe7 {[%clk 0:02:41]} 11. Kh1 {[%clk 0:03:00]}  Nh5 {[%clk 0:02:38]} 12. a4 {[%clk 0:02:41]}  Be6 {[%clk 0:02:34]} 13. b4 {[%clk 0:02:40]}  Nf4 {[%clk 0:02:10]} 14. Bxf4 {[%clk 0:02:35]}  gxf4 {[%clk 0:02:06]} 15. b5 {[%clk 0:02:31]}  Na5 {[%clk 0:02:06]} 16. Bxe6 {[%clk 0:02:30]}  fxe6 {[%clk 0:01:55]} 17. d4 {[%clk 0:02:29]}  Rg8 {[%clk 0:01:51]} 18. bxa6 {[%clk 0:02:20]}  bxa6 {[%clk 0:01:46]} 19. dxe5 {[%clk 0:02:19]}  Qg7 {[%clk 0:01:44]} 20. g3 {[%clk 0:02:17]}  dxe5 {[%clk 0:01:39]} 21. Qe2 {[%clk 0:02:09]}  Bb6 {[%clk 0:01:35]} 22. Nc4 {[%clk 0:01:57]}  Nxc4 {[%clk 0:01:34]} 23. Qxc4 {[%clk 0:01:58]}  Qf6 {[%clk 0:01:26]} 24. Rad1 {[%clk 0:01:47]}  Rd8 {[%clk 0:00:58]} 25. Kg2 {[%clk 0:01:39]}  Kf7 {[%clk 0:00:49]} 26. Qxa6 {[%clk 0:01:29]}  h5 {[%clk 0:00:47]} 27. a5 {[%clk 0:01:27]}  Bc5 {[%clk 0:00:42]} 28. Rxd8 {[%clk 0:01:13]}  Rxd8 {[%clk 0:00:40]} 29. Qc6 {[%clk 0:01:12]}  Bd6 {[%clk 0:00:32]} 30. a6 {[%clk 0:01:07]}  h4 {[%clk 0:00:29]} 31. Nxh4 {[%clk 0:01:08]}  Rg8 {[%clk 0:00:24]} 32. Nf3 {[%clk 0:00:59]}  Qd8 {[%clk 0:00:13]} 33. Rb1 {[%clk 0:00:56]}  Qa8 {[%clk 0:00:12]} 34. Rb7 {[%clk 0:00:55]}  Kf6 {[%clk 0:00:10]} 35. c4 {[%clk 0:00:52]}  fxg3 {[%clk 0:00:10]} 36. hxg3 {[%clk 0:00:52]}  Rh8 {[%clk 0:00:09]} 37. c5 {[%clk 0:00:51]}  Qf8 {[%clk 0:00:09]} 38. cxd6 {[%clk 0:00:47]}  Qh6 {[%clk 0:00:10]} 39. Nh4 {[%clk 0:00:47]}  Rg8 {[%clk 0:00:10]} 40. Qxc7 {[%clk 0:00:44]}  Rxg3+ {[%clk 0:00:05]} 41. fxg3 {[%clk 0:00:42]}  Qd2+ {[%clk 0:00:05]} 42. Kh3 {[%clk 0:00:42]}  Qh2+ {[%clk 0:00:03]} 43. Kxh2 {[%clk 0:00:42]}  Kg5 {[%clk 0:00:02]} 44. Qg7+ {[%clk 0:00:41]}  Kh5 {[%clk 0:00:02]} 45. Qg6# {[%clk 0:00:41]} 1-0


[Site "https://www.chess.com"]

[Event "Titled Tuesday Blitz April 26 Late 2022"]
[White "Donatti, Alvaro"]
[Black "Akrakan"]
[WhiteFideId "3000303"]
[WhiteElo "2138"]
[BlackElo "2094"]
[Result "1/2-1/2"]
[Round "09"]
[TimeControl "180+1"]
[Date "2022.04.26"]
[WhiteClock "0:00:45"]
[BlackClock "0:01:39"]

1. f4 {[%clk 0:03:00]}  c5 {[%clk 0:02:59]} 2. Nf3 {[%clk 0:02:59]}  d5 {[%clk 0:02:59]} 3. b3 {[%clk 0:02:57]}  Nc6 {[%clk 0:02:59]} 4. Bb2 {[%clk 0:02:56]}  Nf6 {[%clk 0:03:00]} 5. e3 {[%clk 0:02:56]}  e6 {[%clk 0:03:00]} 6. Bb5 {[%clk 0:02:56]}  Qb6 {[%clk 0:02:58]} 7. Bxc6+ {[%clk 0:02:55]}  Qxc6 {[%clk 0:02:59]} 8. O-O {[%clk 0:02:54]}  Be7 {[%clk 0:02:57]} 9. Ne5 {[%clk 0:02:54]}  Qc7 {[%clk 0:02:57]} 10. d3 {[%clk 0:02:51]}  b5 {[%clk 0:02:57]} 11. Nd2 {[%clk 0:02:50]}  Bb7 {[%clk 0:02:57]} 12. c4 {[%clk 0:02:43]}  bxc4 {[%clk 0:02:56]} 13. dxc4 {[%clk 0:02:39]}  O-O {[%clk 0:02:54]} 14. cxd5 {[%clk 0:02:37]}  Nxd5 {[%clk 0:02:53]} 15. Qe2 {[%clk 0:02:30]}  Bf6 {[%clk 0:02:52]} 16. Rac1 {[%clk 0:02:28]}  Nb4 {[%clk 0:02:22]} 17. a3 {[%clk 0:02:19]}  Ba6 {[%clk 0:02:22]} 18. Ndc4 {[%clk 0:02:17]}  Nc6 {[%clk 0:02:18]} 19. Qf3 {[%clk 0:02:06]}  Rac8 {[%clk 0:02:14]} 20. Ba1 {[%clk 0:01:40]}  Bxc4 {[%clk 0:02:10]} 21. Rxc4 {[%clk 0:01:37]}  Nxe5 {[%clk 0:02:07]} 22. fxe5 {[%clk 0:01:24]}  Bxe5 {[%clk 0:02:07]} 23. Bxe5 {[%clk 0:01:23]}  Qxe5 {[%clk 0:02:07]} 24. Re4 {[%clk 0:01:22]}  Qb2 {[%clk 0:02:04]} 25. b4 {[%clk 0:01:20]}  Qxa3 {[%clk 0:02:01]} 26. bxc5 {[%clk 0:01:15]}  Qxc5 {[%clk 0:02:01]} 27. Rg4 {[%clk 0:01:12]}  Qe5 {[%clk 0:01:54]} 28. Re4 {[%clk 0:01:09]}  Qd6 {[%clk 0:01:49]} 29. Rf4 {[%clk 0:01:05]}  Rc7 {[%clk 0:01:47]} 30. Rg4 {[%clk 0:01:03]}  a5 {[%clk 0:01:43]} 31. Rxg7+ {[%clk 0:00:58]}  Kxg7 {[%clk 0:01:39]} 32. Qf6+ {[%clk 0:00:57]}  Kg8 {[%clk 0:01:39]} 33. Qg5+ {[%clk 0:00:57]}  Kh8 {[%clk 0:01:39]} 34. Qf6+ {[%clk 0:00:56]}  Kg8 {[%clk 0:01:39]} 35. Qg5+ {[%clk 0:00:45]}  Kh8 {[%clk 0:01:38]} 36. Qf6+ {[%clk 0:00:45]}  Kg8 {[%clk 0:01:39]} 1/2-1/2


[Site "https://www.chess.com"]

[Event "Titled Tuesday Blitz April 26 Late 2022"]
[White "Donchenko, Alexander"]
[Black "Sernecki, Franciszek"]
[WhiteFideId "24603295"]
[BlackFideId "1169297"]
[WhiteElo "2539"]
[BlackElo "2165"]
[Result "1-0"]
[Round "09"]
[TimeControl "180+1"]
[Date "2022.04.26"]
[WhiteClock "0:01:39"]
[BlackClock "0:00:08"]

1. d4 {[%clk 0:03:00]}  Nf6 {[%clk 0:02:55]} 2. Nf3 {[%clk 0:03:01]}  e6 {[%clk 0:02:56]} 3. c4 {[%clk 0:03:00]}  d5 {[%clk 0:02:54]} 4. g3 {[%clk 0:03:01]}  dxc4 {[%clk 0:02:53]} 5. Bg2 {[%clk 0:03:01]}  Bb4+ {[%clk 0:02:54]} 6. Bd2 {[%clk 0:03:01]}  c5 {[%clk 0:02:54]} 7. dxc5 {[%clk 0:02:56]}  Bxc5 {[%clk 0:02:53]} 8. Qa4+ {[%clk 0:02:55]}  Nbd7 {[%clk 0:02:45]} 9. O-O {[%clk 0:02:54]}  O-O {[%clk 0:02:45]} 10. Qxc4 {[%clk 0:02:53]}  b5 {[%clk 0:02:46]} 11. Qc2 {[%clk 0:02:52]}  Bb7 {[%clk 0:02:45]} 12. Nc3 {[%clk 0:02:51]}  a6 {[%clk 0:02:42]} 13. Rfd1 {[%clk 0:02:47]}  Rc8 {[%clk 0:02:38]} 14. a3 {[%clk 0:02:46]}  Qb6 {[%clk 0:02:26]} 15. Be1 {[%clk 0:02:40]}  Rfd8 {[%clk 0:02:16]} 16. h3 {[%clk 0:02:35]}  e5 {[%clk 0:02:08]} 17. Ng5 {[%clk 0:02:26]}  Bxg2 {[%clk 0:01:59]} 18. Kxg2 {[%clk 0:02:27]}  Qb7+ {[%clk 0:01:50]} 19. Kh2 {[%clk 0:02:25]}  h6 {[%clk 0:01:40]} 20. Nge4 {[%clk 0:02:24]}  Nxe4 {[%clk 0:01:23]} 21. Qxe4 {[%clk 0:02:25]}  Qxe4 {[%clk 0:01:21]} 22. Nxe4 {[%clk 0:02:26]}  Bd4 {[%clk 0:01:21]} 23. Ba5 {[%clk 0:02:21]}  Bb6 {[%clk 0:00:52]} 24. Bc3 {[%clk 0:02:13]}  Nc5 {[%clk 0:00:45]} 25. Nxc5 {[%clk 0:02:08]}  Bxc5 {[%clk 0:00:46]} 26. Kg2 {[%clk 0:02:05]}  f6 {[%clk 0:00:46]} 27. Rxd8+ {[%clk 0:01:58]}  Rxd8 {[%clk 0:00:47]} 28. Kf3 {[%clk 0:01:57]}  Kf7 {[%clk 0:00:47]} 29. e3 {[%clk 0:01:56]}  Ke6 {[%clk 0:00:48]} 30. g4 {[%clk 0:01:55]}  Bb6 {[%clk 0:00:44]} 31. a4 {[%clk 0:01:52]}  f5 {[%clk 0:00:23]} 32. axb5 {[%clk 0:01:51]}  axb5 {[%clk 0:00:23]} 33. Ra6 {[%clk 0:01:48]}  fxg4+ {[%clk 0:00:21]} 34. Kxg4 {[%clk 0:01:47]}  Rd6 {[%clk 0:00:18]} 35. Bb4 {[%clk 0:01:47]}  Rc6 {[%clk 0:00:18]} 36. Ba5 {[%clk 0:01:47]}  h5+ {[%clk 0:00:18]} 37. Kg3 {[%clk 0:01:39]}  h4+ {[%clk 0:00:08]} 38. Kg2 {[%clk 0:01:39]} 1-0


[Site "https://www.chess.com"]

[Event "Titled Tuesday Blitz April 26 Late 2022"]
[White "Dubov, Daniil"]
[Black "Sjugirov, Sanan"]
[WhiteFideId "24126055"]
[BlackFideId "4189302"]
[WhiteElo "2791"]
[BlackElo "2602"]
[Result "1/2-1/2"]
[Round "09"]
[TimeControl "180+1"]
[Date "2022.04.26"]
[WhiteClock "0:00:07"]
[BlackClock "0:00:12"]

1. d4 {[%clk 0:03:00]}  Nf6 {[%clk 0:02:59]} 2. Nf3 {[%clk 0:03:01]}  d5 {[%clk 0:02:58]} 3. c4 {[%clk 0:03:01]}  e6 {[%clk 0:02:57]} 4. g3 {[%clk 0:03:02]}  Bb4+ {[%clk 0:02:56]} 5. Nbd2 {[%clk 0:03:01]}  O-O {[%clk 0:02:55]} 6. Bg2 {[%clk 0:03:01]}  b6 {[%clk 0:02:54]} 7. O-O {[%clk 0:03:01]}  Bb7 {[%clk 0:02:54]} 8. Ne5 {[%clk 0:03:00]}  a5 {[%clk 0:02:50]} 9. Qc2 {[%clk 0:02:58]}  c5 {[%clk 0:02:24]} 10. dxc5 {[%clk 0:02:09]}  Bxc5 {[%clk 0:02:20]} 11. Ndf3 {[%clk 0:02:08]}  Na6 {[%clk 0:02:05]} 12. Bg5 {[%clk 0:02:05]}  Be7 {[%clk 0:02:02]} 13. Rad1 {[%clk 0:02:02]}  Qc8 {[%clk 0:01:45]} 14. Qb1 {[%clk 0:01:51]}  dxc4 {[%clk 0:01:36]} 15. Rd4 {[%clk 0:01:42]}  Nc5 {[%clk 0:01:26]} 16. Rxc4 {[%clk 0:01:35]}  Be4 {[%clk 0:01:25]} 17. Qc1 {[%clk 0:01:20]}  Qb7 {[%clk 0:01:24]} 18. Rd1 {[%clk 0:01:11]}  Rad8 {[%clk 0:01:11]} 19. Rcd4 {[%clk 0:01:06]}  Rxd4 {[%clk 0:01:02]} 20. Rxd4 {[%clk 0:01:07]}  Rd8 {[%clk 0:01:00]} 21. Rxd8+ {[%clk 0:01:03]}  Bxd8 {[%clk 0:01:01]} 22. Ng4 {[%clk 0:00:55]}  Ncd7 {[%clk 0:00:44]} 23. Nxf6+ {[%clk 0:00:40]}  Bxf6 {[%clk 0:00:44]} 24. Qf4 {[%clk 0:00:34]}  h6 {[%clk 0:00:37]} 25. Bxf6 {[%clk 0:00:33]}  Nxf6 {[%clk 0:00:38]} 26. Qd6 {[%clk 0:00:28]}  Kh7 {[%clk 0:00:19]} 27. Bf1 {[%clk 0:00:23]}  Bxf3 {[%clk 0:00:12]} 28. exf3 {[%clk 0:00:23]}  g6 {[%clk 0:00:13]} 29. Qd4 {[%clk 0:00:18]}  Kg7 {[%clk 0:00:12]} 30. h4 {[%clk 0:00:16]}  Qc7 {[%clk 0:00:11]} 31. f4 {[%clk 0:00:15]}  h5 {[%clk 0:00:10]} 32. Qe5 {[%clk 0:00:07]}  Qxe5 {[%clk 0:00:10]} 33. fxe5 {[%clk 0:00:08]}  Nd5 {[%clk 0:00:08]} 34. f4 {[%clk 0:00:07]}  Kf8 {[%clk 0:00:07]} 35. Kf2 {[%clk 0:00:07]}  Ke7 {[%clk 0:00:07]} 36. Bc4 {[%clk 0:00:07]}  Nb4 {[%clk 0:00:07]} 37. a3 {[%clk 0:00:07]}  Nc6 {[%clk 0:00:07]} 38. Ke3 {[%clk 0:00:07]}  f6 {[%clk 0:00:06]} 39. Bb5 {[%clk 0:00:05]}  Nd8 {[%clk 0:00:06]} 40. exf6+ {[%clk 0:00:05]}  Kxf6 {[%clk 0:00:06]} 41. Kd4 {[%clk 0:00:04]}  Nb7 {[%clk 0:00:06]} 42. Bd3 {[%clk 0:00:04]}  Nd6 {[%clk 0:00:06]} 43. Ke3 {[%clk 0:00:03]}  Nb7 {[%clk 0:00:06]} 44. Kd4 {[%clk 0:00:03]}  Nd6 {[%clk 0:00:06]} 45. Ke3 {[%clk 0:00:04]}  Nb7 {[%clk 0:00:07]} 46. b4 {[%clk 0:00:03]}  axb4 {[%clk 0:00:06]} 47. axb4 {[%clk 0:00:04]}  Nd6 {[%clk 0:00:07]} 48. Kf3 {[%clk 0:00:04]}  Nb7 {[%clk 0:00:07]} 49. Ke4 {[%clk 0:00:05]}  Nd6+ {[%clk 0:00:07]} 50. Ke3 {[%clk 0:00:05]}  Nb7 {[%clk 0:00:07]} 51. Kd4 {[%clk 0:00:05]}  Nd6 {[%clk 0:00:07]} 52. Bb1 {[%clk 0:00:04]}  Nb7 {[%clk 0:00:07]} 53. Kc4 {[%clk 0:00:04]}  Nd6+ {[%clk 0:00:07]} 54. Kd4 {[%clk 0:00:04]}  Nb7 {[%clk 0:00:07]} 55. Bd3 {[%clk 0:00:05]}  Nd6 {[%clk 0:00:08]} 56. Ke3 {[%clk 0:00:05]}  Nb7 {[%clk 0:00:08]} 57. Kf3 {[%clk 0:00:05]}  Nd6 {[%clk 0:00:08]} 58. g4 {[%clk 0:00:06]}  hxg4+ {[%clk 0:00:08]} 59. Kxg4 {[%clk 0:00:06]}  Nf7 {[%clk 0:00:08]} 60. Kf3 {[%clk 0:00:06]}  e5 {[%clk 0:00:07]} 61. Ke4 {[%clk 0:00:05]}  exf4 {[%clk 0:00:07]} 62. Kxf4 {[%clk 0:00:06]}  g5+ {[%clk 0:00:08]} 63. hxg5+ {[%clk 0:00:07]}  Nxg5 {[%clk 0:00:09]} 64. Bf5 {[%clk 0:00:06]}  Nf7 {[%clk 0:00:09]} 65. Be4 {[%clk 0:00:05]}  Ne5 {[%clk 0:00:09]} 66. Ke3 {[%clk 0:00:05]}  Ke6 {[%clk 0:00:09]} 67. Kd4 {[%clk 0:00:06]}  Kd6 {[%clk 0:00:09]} 68. Bd5 {[%clk 0:00:06]}  Nd7 {[%clk 0:00:09]} 69. Be4 {[%clk 0:00:06]}  Nf6 {[%clk 0:00:09]} 70. Bf3 {[%clk 0:00:06]}  Nd7 {[%clk 0:00:09]} 71. Be4 {[%clk 0:00:06]}  Nf6 {[%clk 0:00:09]} 72. Bf3 {[%clk 0:00:07]}  Nd7 {[%clk 0:00:10]} 73. Kc4 {[%clk 0:00:07]}  Ne5+ {[%clk 0:00:10]} 74. Kb5 {[%clk 0:00:07]}  Kc7 {[%clk 0:00:11]} 75. Be4 {[%clk 0:00:07]}  Nf7 {[%clk 0:00:11]} 76. Bg2 {[%clk 0:00:05]}  Nd6+ {[%clk 0:00:12]} 77. Ka4 {[%clk 0:00:05]}  Nc4 {[%clk 0:00:11]} 78. Kb3 {[%clk 0:00:05]}  Ne5 {[%clk 0:00:11]} 79. Kc3 {[%clk 0:00:05]}  Kd6 {[%clk 0:00:11]} 80. Bf1 {[%clk 0:00:06]}  Nd7 {[%clk 0:00:11]} 81. Be2 {[%clk 0:00:07]}  Ne5 {[%clk 0:00:11]} 82. Bf1 {[%clk 0:00:07]}  Nc6 {[%clk 0:00:11]} 83. Be2 {[%clk 0:00:07]}  Nxb4 {[%clk 0:00:12]} 84. Kxb4 {[%clk 0:00:07]}  b5 {[%clk 0:00:12]} 85. Kxb5 {[%clk 0:00:07]} 1/2-1/2


[Site "https://www.chess.com"]